Cogmind - Beta 11 @@@ ROGUE MODE // 2022.03.19 @ 17:00:30 Player: X.ION Result: Destroyed by G-47 Trooper with Particle Gun Performance ------------- Evolutions (3) 1500 Regions Visited (4) 800 Robots Destroyed (63) 315 Value Destroyed (1606) 1606 Prototype IDs (2) 40 Alien Tech Used (0) 0 Bonus (2) 2 TOTAL SCORE: 4263 Bonus ------- High Alert Combat Kills 2 Cogmind --------- Core Integrity 0/700 Matter 58/300 Energy 8/100 System Corruption 7% Temperature Cool (9) Movement Core (150) Ox2 Location -7/Factory Parts ------- > --- POWER (2) -------- (None) > --- PROPULSION (4) --- (None) > --- UTILITY (4) ------ Visual Processing Unit Field Recycling Unit > --- WEAPON (3) ------- (None) > --- INVENTORY (5) ---- (None) Peak State ------------ > --- POWER ------------ Light Deuterium Engine Light Nuclear Core > --- PROPULSION ------- Carbon-fiber Leg Carbon-fiber Leg Carbon-fiber Leg Gravmag System > --- UTILITY ---------- Visual Processing Unit Kinecellerator Improved Utility Shielding > --- WEAPON ----------- Shock Rifle Greatsword > --- INVENTORY -------- Improved Hover Unit Improved Hover Unit Improved Hover Unit Heavy Assault Rifle Mini Grenade Launcher [Rating: 40] Favorites ----------- Power Light Ion Engine Engine Light Ion Engine Power Core Light Nuclear Core Propulsion Light Treads Treads Light Treads Leg Aluminum Leg Wheel Compact Wheel Hover Unit Gravmag System Flight Unit Improved VTOL Module Utility Improved Utility Shielding Device Structural Scanner Storage Small Storage Unit Processor Visual Processing Unit Protection Improved Utility Shielding Weapon Beam Rifle Energy Gun Beam Rifle Ballistic Gun Light Assault Rifle Launcher Mini Grenade Launcher Slashing Weapon Greatsword Build | -11 -10 -9 -8 -7 ------- Run | Scr Mat Mat Mat Fac Slots Evolved 6 | . . 2 2 2 Power 1 | . . . 1 . Propulsion 2 | . . 2 . . Utility 2 | . . . 1 1 Weapon 1 | . . . . 1 Parts Attached 94 | 9 13 8 29 35 Power 13 | 1 . 1 6 5 Engine 9 | 1 . 1 6 1 Core 4 | . . . . 4 Reactor . | . . . . . Propulsion 32 | 4 4 5 6 13 Treads 10 | 2 2 4 2 . Leg 9 | 1 . . 2 6 Wheel 2 | 1 . . 1 . Hover 7 | . . . . 7 Flight 4 | . 2 1 1 . Utility 16 | 2 3 . 5 6 Device 6 | . 2 . 1 3 Storage 3 | 2 . . 1 . Processor 1 | . . . . 1 Hackware . | . . . . . Protection 6 | . 1 . 3 2 Artifact . | . . . . . Weapon 33 | 2 6 2 12 11 Energy Gun 11 | 1 2 2 3 3 Energy Cannon . | . . . . . Ballistic Gun 12 | 1 4 . 2 5 Ballistic Cannon . | . . . . . Launcher 9 | . . . 7 2 Special Weapon . | . . . . . Impact Weapon . | . . . . . Slashing Weapon 1 | . . . . 1 Piercing Weapon . | . . . . . Special Melee Weapon . | . . . . . Unidentified Prototypes 2 | . . . 1 1 Corrupted Parts 2 | . . . . 2 System Corruption 2 | . . . . 2 Parts Lost 40 | . 3 3 10 24 Power 10 | . 1 1 3 5 Propulsion 12 | . . 1 4 7 Utility 8 | . . 1 2 5 Weapon 10 | . 2 . 1 7 Highest Loss Streak 12 | . 3 1 3 12 To Critical Strikes 1 | . . . 1 . Average Slot Usage (%) 74 | . 84 83 73 61 Engine 4 | . 3 4 9 1 Core 2 | . . . . 7 Treads 14 | . 23 32 7 . Leg 3 | . . . 9 3 Hover 4 | . . . . 14 Flight 3 | . 2 4 5 2 Device 9 | . 13 11 6 9 Storage 4 | . 12 . 6 . Processor 1 | . . . . 4 Protection 6 | . . 8 10 4 Energy Gun 7 | . 8 18 5 1 Ballistic Gun 6 | . 17 2 3 4 Launcher 2 | . . . 7 1 Slashing Weapon 1 | . . . . 3 Naked Turns . | . . . . . Heaviest Build 32 | 13 14 15 29 32 Greatest Support 80 | 40 40 80 40 45 Greatest Overweight (x) 7 | . 2 2 3 7 Average Overweight (x) . | . . . . . Largest Inventory Capacity 8 | 8 8 5 5 5 Average Capacity 5 | 6 7 5 5 5 Most Carried 8 | 5 8 5 5 5 Average Carried 3 | 1 4 3 3 2 Final Capacity 8 | 8 5 5 5 5 Final Carried 3 | 1 2 3 3 . Class Distribution -------------------- 52% | Mutant 46% | Scavenger-Mutant Dominant Class ---------------- Mutant | -10/Materials Scavenger-Mutant | -9/Materials Scavenger-Mutant | -8/Materials Mutant | -7/Factory Resources | -11 -10 -9 -8 -7 ----------- Run | Scr Mat Mat Mat Fac Matter Collected 1405 | 207 133 200 325 540 Remotely . | . . . . . Salvage Created 1549 | . 255 313 523 458 Parts 127 | . 16 23 60 28 Haulers Intercepted . | . . . . . Recyclers Shooed 1 | . . . 1 . Parts Field Recycled 7 | . . . . 7 Retrieved Matter 86 | . . . . 86 Parts Self-Destructed . | . . . . . Prevented . | . . . . . Kills | -11 -10 -9 -8 -7 ------- Run | Scr Mat Mat Mat Fac Combat Hostiles Destroyed 42 | . 5 6 24 7 Melee 1 | . . . . 1 Guns 16 | . 5 4 5 2 AOE 23 | . . . 19 4 Classes Destroyed 12 | . 4 3 4 1 Worker 4 | . . . 3 1 Builder 6 | . . . 4 2 Tunneler 2 | . . 1 1 . Recycler 3 | . 1 . . 2 Operator 1 | . . 1 . . Watcher 5 | . 1 1 2 1 Swarmer 17 | . 3 . 14 . Grunt 15 | . 2 4 4 5 Sentry 4 | . . 2 2 . Specialist 2 | . . . 2 . Hunter 2 | . . . 2 . Programmer 2 | . . . . 2 Best Kill Streak 9 | . 3 4 9 5 Combat Bots Only 5 | . 3 1 5 4 Max Kills in Single Turn 5 | . 1 2 5 4 Gunslinging 1 | . . . 1 . Exploded 4 | . . . 4 2 Melee 1 | . . . . 1 Uniques/NPCs Destroyed . | . . . . . Combat | -11 -10 -9 -8 -7 -------- Run | Scr Mat Mat Mat Fac Damage Taken 5036 | . 454 555 1682 2345 Core 1236 | . 83 177 267 709 Absorbed by Shields . | . . . . . Redirected to Shielding 96 | . . 33 33 30 Core Remaining (%) 68 | 100 66 55 51 . Volleys Fired 176 | . 45 27 45 59 Largest 2 | . 2 2 2 2 Hottest 112 | . 90 112 101 51 Shots Fired 274 | . 70 54 89 61 Gun 227 | . 70 54 54 49 Cannon . | . . . . . Launcher 47 | . . . 35 12 Special . | . . . . . Kinetic 87 | . 37 4 11 35 Thermal 126 | . 33 50 43 . Explosive 47 | . . . 35 12 Electromagnetic 14 | . . . . 14 Robot Hit Streak 8 | . 4 8 3 6 Robot Miss Streak 9 | . 9 3 8 5 Penetration Max . | . . . . . Secondary Targets 3 | . 1 1 1 . Max Gunslinging Chain 1 | . 1 1 1 . Shots Hit Robots 110 | . 26 32 16 36 Core Hits 97 | . 13 13 50 21 Critical Kills . | . . . . . Critical Parts Destroyed 2 | . 1 . . 1 Critical Strikes 6 | . 1 2 2 1 Burn 4 | . . 2 2 . Destroy 2 | . 1 . . 1 Melee Attacks 8 | . . . . 8 Impact . | . . . . . Slashing 8 | . . . . 8 Piercing . | . . . . . Sneak Attacks . | . . . . . Combat Hostiles . | . . . . . Follow-up Attacks . | . . . . . Damage Inflicted 4279 | . 262 452 2089 1476 Guns 1413 | . 262 452 232 467 Cannons . | . . . . . Explosions 2765 | . . . 1857 908 Melee 101 | . . . . 101 Ramming . | . . . . . Kinetic 667 | . 146 24 86 411 Thermal 764 | . 116 428 146 74 Explosive 2691 | . . . 1857 834 Electromagnetic 56 | . . . . 56 Impact . | . . . . . Slashing 101 | . . . . 101 Piercing . | . . . . . Highest Corruption 7 | . 1 . 4 7 Average Corruption 3 | . 1 . 4 4 Corruption Purged . | . . . . . Corruption Blocked . | . . . . . Effects 42 | . 3 . 14 25 Message Errors 12 | . 2 . 4 6 Matter Fused 9 | . . . 3 6 Heat Flow Errors 4 | . . . . 4 Energy Discharges 9 | . 1 . 3 5 Data Loss (minor) 3 | . . . 2 1 Data Loss (major) 1 | . . . . 1 Misfires 1 | . . . 1 . Alerts 2 | . . . 1 1 Weapon Failures 1 | . . . . 1 Overload Shots . | . . . . . Overflow Damage 169 | . . . 82 87 Projectiles . | . . . . . Explosions 169 | . . . 82 87 Melee . | . . . . . Knockbacks . | . . . . . Impact . | . . . . . Kinetic . | . . . . . Secondary . | . . . . . Self-Inflicted Damage 295 | . . . 256 39 Shots 10 | . . . 8 2 Rammed . | . . . . . Targets Rammed . | . . . . . Kicked . | . . . . . Crushed . | . . . . . Highest Temperature 561 | . 309 561 439 427 Average Temperature 156 | . 116 178 155 163 Received Heat Transfer 1254 | . 210 261 144 639 Effects 25 | . 1 10 6 8 Shutdowns 7 | . . 3 . 4 Energy Bleed 4 | . . 1 2 1 Interference 3 | . . . 2 1 Matter Decay 3 | . . 1 1 1 Short Circuit 3 | . 1 1 1 . Damage (minor) 1 | . . 1 . . Damage (major) 3 | . . 2 . 1 Damage (core) 1 | . . 1 . . Siege Activations . | . . . . . Robots Corrupted . | . . . . . Combat Hostiles . | . . . . . Parts Fried . | . . . . . Impact Corruptions . | . . . . . Robots Melted 2 | . . 2 . . Combat Hostiles 2 | . . 2 . . Parts Melted 4 | . . 4 . . Heat Transferred 2124 | . 298 1258 518 50 Parts Sabotaged . | . . . . . Parts Stolen . | . . . . . Parts Stripped . | . . . . . Power Chain Reactions . | . . . . . Missiles Intercepted . | . . . . . Alert | -11 -10 -9 -8 -7 ------- Run | Scr Mat Mat Mat Fac Peak Influence 460 | . 97 177 460 306 Initial 206 | . . 18 . 206 Average 109 | . 31 90 175 135 Maximum Alert Level 2 | . . . 2 1 Low Security (%) 82 | 100 100 100 54 80 Level 1 16 | . . . 41 19 Level 2 . | . . . 3 . Level 3 . | . . . . . Level 4 . | . . . . . Level 5 . | . . . . . High Security . | . . . . . Max Security . | . . . . . Squads Dispatched 16 | . . 5 3 8 Investigation 5 | . . 2 . 3 Extermination 3 | . . . . 3 Reinforcement 8 | . . 3 3 2 Assault . | . . . . . Garrison . | . . . . . Intercept . | . . . . . Searches Triggered . | . . . . . Construction Impeded 1 | . . . 1 . Haulers Reinforced . | . . . . . Active Scanning Responses . | . . . . . Cargo Convoy Interrupts . | . . . . . Stealth | -11 -10 -9 -8 -7 --------- Run | Scr Mat Mat Mat Fac Distress Signals 2 | . . . 2 . Communications Jammed . | . . . . . Distress Signals . | . . . . . Times Spotted 77 | . 11 19 27 20 Peak Tracking Total 5 | . 4 5 5 4 Tactical Retreats 9 | . 1 4 1 3 Traps | -11 -10 -9 -8 -7 ------- Run | Scr Mat Mat Mat Fac Traps Triggered 14 | . 6 1 . 7 Indirectly . | . . . . . Trap Hack Attempts . | . . . . . Triggered . | . . . . . Disarmed . | . . . . . Reprogrammed . | . . . . . Reused . | . . . . . Traps Extracted . | . . . . . Installed . | . . . . . Triggered . | . . . . . Machines | -11 -10 -9 -8 -7 ---------- Run | Scr Mat Mat Mat Fac Machines Disabled 8 | . . 1 2 5 Max in Single Turn 2 | . . 1 2 2 Machines Sabotaged . | . . . . . Garrisons Compromised . | . . . . . Overloaded Fab Kills . | . . . . . Hacking | -11 -10 -9 -8 -7 --------- Run | Scr Mat Mat Mat Fac Machines Accessed 14 | . 5 3 1 5 Terminals 5 | . 3 1 . 1 Fabricators 2 | . . . . 2 Repair Stations . | . . . . . Recycling Units 5 | . 2 1 1 1 Scanalyzers 2 | . . 1 . 1 Garrison Access . | . . . . . Total Hacks 59 | . 22 17 8 12 Successful 34 | . 14 8 6 6 Failed 24 | . 8 8 2 6 Catastrophic . | . . . . . Database Lockouts 1 | . . 1 . . Manual . | . . . . . Terminals 21 | . 11 8 . 2 Fabricators 5 | . . . . 5 Repair Stations . | . . . . . Recycling Units 24 | . 11 3 8 2 Scanalyzers 9 | . . 6 . 3 Garrison Access . | . . . . . Terminal Hacks 9 | . 5 4 . . Record 5 | . 3 2 . . Alert Level 2 | . 1 1 . . Investigation Status 1 | . 1 . . . Assault Status 1 | . . 1 . . Fabricator Hacks 3 | . . . . 3 Network Status 1 | . . . . 1 Load Schematic 1 | . . . . 1 Build 1 | . . . . 1 Repair Station Hacks . | . . . . . Recycling Unit Hacks 18 | . 9 2 6 1 Recycle Component 2 | . 1 . 1 . Process 2 | . 1 . 1 . Report Inventory 6 | . 4 1 1 . Retrieve Matter 3 | . 2 . 1 . Retrieve Components 5 | . 1 1 2 1 Scanalyzer 4 | . . 2 . 2 Insert Component 2 | . . 1 . 1 Analyze 2 | . . 1 . 1 Garrison Access Hacks . | . . . . . Unauthorized Hacks . | . . . . . Terminals . | . . . . . Fabricators . | . . . . . Repair Stations . | . . . . . Recycling Units . | . . . . . Scanalyzers . | . . . . . Garrison Access . | . . . . . Data Cores Recovered . | . . . . . Used . | . . . . . Hacking Detections 11 | . 4 2 1 4 Full Trace Events 8 | . 3 2 . 3 Feedback Events . | . . . . . Feedback Blocked . | . . . . . Robot Schematics Acquired . | . . . . . Robots Built . | . . . . . Authchips . | . . . . . Time . | . . . . . Total Robot Build Rating . | . . . . . Part Schematics Acquired 2 | . . 1 . 1 Parts Built 2 | . . . . 2 Authchips . | . . . . . Time 51 | . . . . 51 Total Part Build Rating 2 | . . . . 2 Parts Repaired . | . . . . . Time . | . . . . . Parts Recycled 2 | . 1 . 1 . Recycled Matter 123 | . 48 . 75 . Retrieved Matter 202 | . 127 . 75 . Retrieved Components 23 | . 10 10 . 3 Parts Scanalyzed 2 | . . 1 . 1 Part Schematics Acquired 2 | . . 1 . 1 Parts Damaged 1 | . . . . 1 Bothacking | -11 -10 -9 -8 -7 ------------ Run | Scr Mat Mat Mat Fac Used RIF Installer . | . . . . . Robots Hacked . | . . . . . Non-combat . | . . . . . Combat . | . . . . . Robot Hacks Applied . | . . . . . Relay Couplers Released . | . . . . . Fabnet Peak Effective % . | . . . . . Robots Rewired . | . . . . . Allies Hacked . | . . . . . Hacks Repelled . | . . . . . Allies | -11 -10 -9 -8 -7 -------- Run | Scr Mat Mat Mat Fac Total Allies . | . . . . . Largest Group . | . . . . . Highest-Rated Group . | . . . . . Highest-Rated Ally . | . . . . . Total Orders . | . . . . . Ally Attacks . | . . . . . Total Damage . | . . . . . Kills . | . . . . . Allies Corrupted . | . . . . . Allies Melted . | . . . . . Intel | -11 -10 -9 -8 -7 ------- Run | Scr Mat Mat Mat Fac Robot Analysis Total . | . . . . . Derelict Logs Recovered . | . . . . . Drone Launches . | . . . . . Drone Recoveries . | . . . . . Exploration | -11 -10 -9 -8 -7 ------------- Run | Scr Mat Mat Mat Fac Turns Passed 4070 | 145 860 838 1016 1211 Spaces Moved 2480 | 94 592 422 543 829 Core 175 | 27 9 . 19 120 Treads 1125 | 61 389 370 214 91 Legs 397 | 2 . . 304 91 Wheels 4 | 4 . . . . Hover 524 | . . . . 524 Flight 255 | . 194 52 6 3 Fastest Speed 37 | 50 37 37 105 48 Average Speed 124 | 125 119 155 150 96 Slowest Speed 400 | 160 160 260 200 400 Overloaded Moves . | . . . . . Propulsion Burnouts . | . . . . . Robots Hopped 3 | . 3 . . . Cave-ins Triggered 1 | . . . 1 . Exploration Rate (%) 28 | 5 63 30 27 15 Regions Visited 4 Branch Regions . Pre-discovered Areas . | . . . . . Known Exits Taken . | . . . . . Unknown Exits Taken 4 | 1 1 1 1 . Scrap Searched . | . . . . . Spaces Dug 22 | . . . 11 11 Terrain Destroyed 325 | . . . 206 119 Melee . | . . . . . Projectile . | . . . . . AOE 325 | . . . 206 119 Terrain Rammed . | . . . . . Walls Destroyed . | . . . . . Machines Disabled . | . . . . . Actions | -11 -10 -9 -8 -7 --------- Run | Scr Mat Mat Mat Fac Total 3177 | 121 685 548 658 1165 Wait 280 | 7 1 81 2 189 Move 2471 | 93 586 421 542 829 Hop 2 | . 2 . . . Pick Up 93 | 7 23 5 25 33 Fast Attach 12 | 4 1 4 3 . Attach 68 | 3 10 1 20 34 Detach 7 | 1 2 . 2 2 Swap 14 | 2 2 3 6 1 Drop 46 | 4 13 6 13 10 Fire 176 | . 45 27 45 59 Melee 8 | . . . . 8 Ram . | . . . . . Kick . | . . . . . Crush . | . . . . . Escape Stasis . | . . . . . Rewire . | . . . . . Trap . | . . . . . Miscellaneous . | . . . . . Route ------- -11/Scrapyard -10/Materials (discovered 2 exits: *Mat / [*Min]) -9/Materials -8/Materials -7/Factory History --------- Turn | Location | Event 3 | -11/Scrapyard | Discovered new exit (range 15) 146 | -11/Scrapyard | Entered Materials 240 | -10/Materials | Discovered new exit (range 7) 315 | -10/Materials | Build established: Mutant 398 | -10/Materials | Lost 3 parts (1p2w) 934 | -10/Materials | Discovered new exit (range 15) 1006 | -10/Materials | Entered another Materials area 1006 | -9/Materials | Evolved 2 slots: Propulsion x2 1360 | -9/Materials | Build established: Scavenger-Mutant 1389 | -9/Materials | Central database locked down 1828 | -9/Materials | Discovered new exit (range 8) 1844 | -9/Materials | Entered another Materials area 1844 | -8/Materials | Evolved 2 slots: Power x1, Utility x1 2163 | -8/Materials | Crushed by falling debris 2652 | -8/Materials | Lost 3 parts (2p1n) 2843 | -8/Materials | Discovered new exit (range 11) 2860 | -8/Materials | Entered Factory 2860 | -7/Factory | Evolved 2 slots: Utility x1, Weapon x1 3079 | -7/Factory | Lost 3 parts (1p1n1w) 3232 | -7/Factory | Build established: Mutant 3488 | -7/Factory | Lost 4 parts (1p2u1w) 3558 | -7/Factory | Build established: Scavenger-Mutant 3785 | -7/Factory | Core integrity fell below 50% 3809 | -7/Factory | Lost 3 parts (2n1w) 3897 | -7/Factory | Fabricated Lgt. Armor Plating (x2) 3922 | -7/Factory | Build established: Mutant 4030 | -7/Factory | Core integrity fell below 20% 4071 | -7/Factory | Destroyed by G-47 Trooper with Particle Gun Last Messages --------------- 04006_ Power failure, Mic. Nuclear Core shutdown. 04006_ Airjet destroyed. 04012_ Lgt. Nuclear Core destroyed. 04013_ G-47 Trooper destroyed. 04015_ Overheating: Mic. Nuclear Core damaged (-4). 04015_ Lgt. Armor Plating destroyed. 04017_ Overheating: Energy bleed (-36). 04018_ Power failure, Mic. Nuclear Core shutdown. 04023_ Gravmag System destroyed. 04024_ Prc. Assault Rifle destroyed. 04027_ Power failure, Mic. Nuclear Core shutdown. 04029_ Mic. Nuclear Core destroyed. 04031_ System corrupted: Energy discharge (-19). 04042_ P-60 Hacker destroyed. 04047_ System corrupted: IFF burst signal emitted. 04051_ Lgt. Armor Plating destroyed. 04056_ Mic. Nuclear Core destroyed. 04062_ Acquired Shock Rifle. 04068_ Transmission Jammer destroyed. 04070_ Shock Rifle destroyed. Map ----- +----------------------------------------------------+ | | | ???????####################??????????????????????? | | ???????# #??????????????????????? | | ???????# #??????????????????????? | | ???????# ##############?????????? | | ???????# ## ??????????? | | ???????# ## #?????????????? | | ???????# ## #?????????????? | | ???????# + #?????????????? | | ???????# # #?????????????? | | ???????##########/######### #?????????????? | | ??????????????# #?????????????? | | ??????????????# ######## #?????????????? | | ?????####?????# ########+##/## #?????????????? | | ?????# ###### # | # #?????????????? | | ?????# # """ [[ #?#?????????????? | | ?##??# # "T [[ #???????????????? | | ##T ##### # """ [[ #???????????????? | | # + #???????????????? | | # # % #???????????????? | | # + ![ #???????????????? | | + # #???????????????? | | # # """ #???????????????? | | # ###+#######+### """"" #???????????????? | | # ?# ## =""""" t #???????????????? | | ??# ## [g@* g #???????????????? | | ????# """ """ ###############???????????????? | | ??????# """ """ #?????????????????????????????? | | ??????# """ """ #?????????????????????????????? | | ??????# #????????????????? ##?????????? | | ??????# """ """ ################# #?????????? | | ??????? """ """ / ???????????? | | ??????# """ """ # #??????????????? | | ??????# # #??????????????? | | ??????# + #??????????????? | | ??????# ########+#### #??????????????? | | ??????################### # ####???????????? | | ???????? [ / + """" + #???????????? | | ???????? ###### "F " ##### #???????????? | | ????????????????????????# #???# #???????????? | | ????????????????????????# #?### ###?????????? | | ????????????????????????# #?# ########### | | ??????????????????????############ "" # | | ???????????????????+ "T | | ???????????????????############ ## # | | ???????????????????# #?????# ## ########+## | | ???????????????????# #?????# ####"####????????? | | ???????????????????# #?????# ## #????????? | | ???????????????????# ####### ## """" #????????? | | ???????????????????# + ## """" #????????? | +----------------------------------------------------+ Best States ------------- Heat Dissipation 34 Energy Generation 24 Energy Capacity 390 Matter Stores 300 Matter Capacity 300 Sight Range 18 Terrain Scan Range 14 Terrain Scan Density 10 Jamming Range 12 Additional Mass Support 9 Armor Coverage 225 Propulsion Shielding 33 Utility Shielding 66 Evasion (%) 62 Recoil Reduction 4 Kinecelleration 30 Item Schematics ----------------- Lgt. Armor Plating | -9/Materials | Scanalyzed Mni. Grenade Launcher | -7/Factory | Scanalyzed Robot Schematics ------------------ None Fabricated ------------ Lgt. Armor Plating | x2 | -7/Factory Alien Tech Used ----------------- None Achievements -------------- It's Just You Just What I Needed Let's See Who's Tougher Made in Tau Ceti IV Novice Programmer Oops Remodeling Universal Adapter Challenges ------------ None Game ------ Seed AccelerationWeightDrive Manual? 0 Play Time 01:48:35 Cumulative 4.6 hours Start 2022.03.19 @ 13:03:49 End 2022.03.19 @ 17:00:30 Sessions 1 Manual Loads 0 Difficulty Rogue Special Mode None Game No. 5 Rogue 5 Adventurer 0 Explorer 0 Win Type - Total 0 Types 0/0/0/0/0/0/0/0/0 Lore% 1 Gallery% 6 Achievement% 7 Wizard Run 0 Options --------- ASCII 0 Keyboard 0 Movement Mouse Keybinds 0 Fullscreen 1 Font 24/Smallcaps Map View 76x50 Tactical HUD 1 Map Filters NONE Filters NONE Steam 1 RUN: 5ff8ac19-5405-4726-88ca-8eddd1385971